fUSD/lending_fUSD_20240227
["ID","MTS","AMOUNT","RATE_DAILY","PERIOD"]
[315418971,1709022632639,-153.23,0.00021342,2]
[315418972,1709022632648,-164.0,0.00021437,2]
[315418973,1709022632657,-929.0,0.00021437,2]
[315418974,1709022632667,-177.9,0.00021449,2]
[315418975,1709022632676,-153.23,0.00021477,2]
[315418976,1709022632685,-814.14,0.00021541,2]
[315418977,1709022632694,-153.23,0.00021612,2]
[315418978,1709022632703,-166.13,0.00021615,2]
[315418979,1709022632712,-1000.0,0.00021652,2]
[315418980,1709022632722,-153.23,0.00021746,2]
[315418982,1709022632731,-431.69,0.00021811,2]
[315418984,1709022632740,-152.0,0.0002188,3]
[315418986,1709022632749,-5762.68957743,0.00021902,2]
[315418990,1709022632796,-41179.31042257,0.00021902,2]
[315418993,1709022632806,-163.75,0.00021918,2]
[315418994,1709022632816,-152.9,0.00021918,2]
[315418996,1709022632826,-7167.1189,0.0002194,2]
[315418998,1709022632835,-150.0,0.00021997,2]
[315419001,1709022632845,-177.9,0.00021997,2]
[315419002,1709022632854,-684.31667743,0.00022,3]
[315419004,1709022633128,-1065.68332257,0.00022,3]
[315419005,1709022633138,-1000.0,0.0002204,2]
[315419006,1709022633148,-53865.313483,0.0002204,2]
[315419007,1709022633160,-4381.72676221,0.0002204,2]
[315419008,1709022633178,-499.28287344,0.0002204,2]
[315419009,1709022633190,-861.44603672,0.0002204,2]
[315419010,1709022633207,-1272.22164415,0.0002204,2]
[315419011,1709022633218,-1016.27333657,0.0002204,2]
[315419012,1709022633230,-2813.95,0.0002204,2]
[315419013,1709022633242,-1507.2300007,0.0002204,2]
[315419014,1709022633288,-392.47674322,0.0002204,2]
[315419015,1709022633299,-1407.24230096,0.0002204,2]
[315419016,1709022633321,-3099.56136883,0.0002204,2]
[315419017,1709022633336,-10957.0575502,0.0002204,2]
[315419018,1709022633346,-217.0,0.00022043,2]
[315419019,1709022633356,-730.916,0.00022043,2]
[315419020,1709022633367,-339.956,0.00022043,2]
[315419021,1709022633377,-1040.0,0.00022043,2]
[315419022,1709022633386,-1000.0,0.00022055,3]
[315419023,1709022633395,-384.51844264,0.00022055,3]
[315419024,1709022633404,-202.25498195,0.00022055,3]
[315419025,1709022633414,-202.01904814,0.0002206,3]
[315419026,1709022633424,-1000.0,0.0002206,3]
[315419027,1709022633433,-187.90946303,0.0002206,3]
[315419028,1709022633443,-152.9,0.00022064,2]
[315419029,1709022633454,-2074.2943533,0.000221,2]
[315419030,1709022633463,-2500.0,0.00022118,2]
[315419031,1709022633472,-2571.73,0.00022118,2]
[315419032,1709022633482,-2493.19,0.00022128,2]
[315419033,1709022633492,-182.55,0.0002213,2]
[315419034,1709022633502,-251.81,0.0002213,3]
[315419035,1709022633512,-2529.57,0.0002214,2]
[315419036,1709022633522,-97785.2763,0.0002214,2]
[315419037,1709022633532,-2101.57437938,0.00022146,2]
[315419038,1709022633542,-152.9,0.0002221,2]
[315419039,1709022633552,-5937.0,0.00022239,2]
[315419040,1709022633562,-225.15,0.00022246,2]
[315419041,1709022633571,-152.9,0.00022356,2]
[315419042,1709022633582,-2101.57437932,0.00022397,2]
[315419043,1709022633591,-204.0,0.00022406,5]
[315419044,1709022633601,-413.13,0.00022413,2]
[315419045,1709022633610,-949.44,0.00022432,2]
[315419046,1709022633621,-152.9,0.00022502,2]
[315419047,1709022633630,-164.0,0.00022533,2]
[315419048,1709022633639,-929.0,0.00022533,2]
[315419049,1709022633648,-178.60207277,0.00022545,2]
[315419050,1709022633657,-986.68919457,0.00022561,2]
[315419051,1709022633666,-2101.57437932,0.00022647,2]
[315419052,1709022633675,-152.9,0.00022648,2]
[315419053,1709022633685,-500.000001,0.00022737,2]
[315419054,1709022633694,-500.0,0.00022739,2]
[315419055,1709022633703,-500.0,0.00022739,2]
[315419056,1709022633712,-500.0,0.00022739,2]
[315419057,1709022633722,-500.0,0.00022739,2]
[315419058,1709022633730,-500.0,0.00022739,2]
[315419059,1709022633740,-500.0,0.00022739,2]
[315419060,1709022633749,-500.0,0.00022739,2]
[315419061,1709022633759,-204.3,0.00022739,2]
[315419062,1709022633768,-275.67,0.00022739,2]
[315419063,1709022633778,-500.0,0.00022739,2]
[315419064,1709022633791,-289.92688348,0.00022739,2]
[315419065,1709022633801,-500.0,0.00022739,2]
[315419066,1709022633810,-474.71,0.00022739,2]
[315419067,1709022633820,-387.65,0.00022739,2]
[315419068,1709022633830,-364.84,0.00022739,2]
[315419069,1709022633840,-500.0,0.00022739,2]
[315419070,1709022633849,-500.0,0.00022739,2]
[315419071,1709022633859,-263.2,0.00022739,2]
[315419072,1709022633869,-425.2,0.00022739,2]
[315419073,1709022633878,-500.0,0.00022739,2]
[315419074,1709022633888,-562.86914368,0.00022739,2]
[315419075,1709022633898,-571.64166585,0.00022739,2]
[315419076,1709022633909,-500.0,0.00022739,2]
[315419077,1709022633918,-150.0,0.00022739,2]
[315419078,1709022633928,-500.0,0.00022739,2]
[315419079,1709022633938,-500.0,0.00022739,2]
[315419080,1709022633947,-500.0,0.00022739,2]
[315419081,1709022633957,-500.0,0.00022739,2]
[315419082,1709022633967,-285.1207333,0.00022739,2]
[315419083,1709022633977,-195.06,0.00022739,2]
[315419084,1709022633986,-551.78,0.00022739,2]
[315419085,1709022633995,-500.0,0.00022739,2]
[315419086,1709022634006,-500.0,0.00022739,2]
[315419087,1709022634017,-211.62,0.00022739,2]
[315419088,1709022634027,-500.0,0.00022739,2]
[315419089,1709022634036,-500.0,0.00022739,2]
[315419090,1709022634046,-486.93,0.00022739,2]
[315419091,1709022634056,-500.0,0.00022739,2]
[315419092,1709022634066,-500.0,0.00022739,2]
[315419093,1709022634076,-500.0,0.00022739,2]
[315419094,1709022634086,-360.42,0.00022739,2]
[315419095,1709022634096,-500.0,0.00022739,2]
[315419096,1709022634106,-558.39,0.00022739,2]
[315419097,1709022634116,-231.06,0.00022739,2]
[315419098,1709022634125,-500.0,0.00022739,2]
[315419099,1709022634134,-500.0,0.00022739,2]
[315419100,1709022634144,-208.26,0.00022739,2]
[315419101,1709022634154,-345.1,0.00022739,2]
[315419102,1709022634164,-475.22,0.00022739,2]
[315419103,1709022634174,-384.55,0.00022739,2]
[315419104,1709022634184,-500.0,0.00022739,2]
[315419105,1709022634194,-436.25700098,0.00022739,2]
[315419106,1709022634203,-829.57,0.00022739,2]
[315419107,1709022634215,-500.0,0.00022739,2]
[315419108,1709022634226,-561.0,0.00022739,2]
[315419109,1709022634236,-500.0,0.00022739,2]
[315419110,1709022634246,-500.0,0.00022739,2]
[315419111,1709022634257,-500.0,0.00022739,2]
[315419112,1709022634267,-500.0,0.00022739,2]
[315419113,1709022634278,-500.0,0.00022739,2]
[315419114,1709022634288,-500.0,0.00022739,2]
[315419115,1709022634299,-500.0,0.00022739,2]
[315419116,1709022634309,-500.0,0.00022739,2]
[315419117,1709022634318,-510.89,0.00022739,2]
[315419118,1709022634332,-500.0,0.00022739,2]
[315419119,1709022634341,-500.0,0.00022739,2]
[315419120,1709022634350,-500.0,0.00022739,2]
[315419121,1709022634360,-500.0,0.00022739,2]
[315419122,1709022634371,-500.0,0.00022739,2]
[315419123,1709022634381,-587.74,0.00022739,2]
[315419124,1709022634390,-500.0,0.00022739,2]
[315419125,1709022634400,-500.0,0.00022739,2]
[315419126,1709022634409,-620.73,0.00022739,2]
[315419127,1709022634418,-500.0,0.00022739,2]
[315419128,1709022634428,-491.37783441,0.00022739,2]
[315419129,1709022634437,-695.34,0.00022739,2]
[315419130,1709022634447,-1818.24,0.00022739,2]
[315419131,1709022634456,-2037.37,0.00022739,2]
[315419132,1709022634466,-500.0,0.00022739,2]
[315419133,1709022634475,-158.56617243,0.00022739,2]
[315419134,1709022634485,-500.0,0.00022739,2]
[315419135,1709022634495,-645.98,0.00022739,2]
[315419136,1709022634504,-500.0,0.00022739,2]
[315419137,1709022634514,-500.0,0.00022739,2]
[315419138,1709022634523,-500.0,0.00022739,2]
[315419139,1709022634532,-500.0,0.00022739,2]
[315419140,1709022634542,-500.0,0.00022739,2]
[315419141,1709022634552,-500.0,0.00022739,2]
[315419142,1709022634561,-777.95,0.00022739,2]
[315419143,1709022634571,-500.0,0.00022739,2]
[315419144,1709022634581,-500.0,0.00022739,2]
[315419145,1709022634591,-500.0,0.00022739,2]
[315419146,1709022634602,-545.09383645,0.00022739,2]
[315419147,1709022634613,-500.0,0.00022739,2]
[315419148,1709022634623,-500.0,0.00022739,2]
[315419149,1709022634633,-500.0,0.00022739,2]
[315419150,1709022634642,-500.0,0.00022739,2]
[315419151,1709022634654,-1385.43,0.00022739,2]
[315419152,1709022634664,-500.0,0.00022739,2]
[315419153,1709022634675,-500.0,0.00022739,2]
[315419154,1709022634685,-500.0,0.00022739,2]
[315419155,1709022634696,-500.0,0.00022739,2]
[315419156,1709022634706,-500.0,0.00022739,2]
[315419157,1709022634716,-569.83,0.00022739,2]
[315419158,1709022634726,-500.0,0.00022739,2]
[315419159,1709022634736,-500.0,0.00022739,2]
[315419160,1709022634746,-500.0,0.00022739,2]
[315419161,1709022634756,-500.0,0.00022739,2]
[315419162,1709022634767,-500.0,0.00022739,2]
[315419163,1709022634784,-807.21,0.00022739,2]
[315419164,1709022634797,-500.0,0.00022739,2]
[315419165,1709022634806,-500.0,0.00022739,2]
[315419166,1709022634818,-500.0,0.00022739,2]
[315419167,1709022634827,-500.0,0.00022739,2]
[315419168,1709022634837,-500.0,0.00022739,2]
[315419169,1709022634847,-500.0,0.00022739,2]
[315419170,1709022634856,-500.0,0.00022739,2]
[315419171,1709022634867,-1615.64,0.00022739,2]
[315419172,1709022634877,-500.0,0.00022739,2]
[315419173,1709022634887,-500.0,0.00022739,2]
[315419174,1709022634896,-500.0,0.00022739,2]
[315419175,1709022634906,-1516.81,0.00022739,2]
[315419176,1709022634915,-500.0,0.00022739,2]
[315419177,1709022634925,-500.0,0.00022739,2]
[315419178,1709022634935,-584.39,0.00022739,2]
[315419179,1709022634945,-500.0,0.00022739,2]
[315419180,1709022634954,-500.0,0.00022739,2]
[315419181,1709022634964,-500.0,0.00022739,2]
[315419182,1709022634974,-500.0,0.00022739,2]
[315419183,1709022634984,-500.0,0.00022739,2]
[315419184,1709022634993,-3827.73,0.00022739,2]
[315419185,1709022635003,-500.0,0.00022739,2]
[315419186,1709022635013,-500.0,0.00022739,2]
[315419187,1709022635023,-500.0,0.00022739,2]
[315419188,1709022635036,-1016.29,0.00022739,2]
[315419189,1709022635046,-531.07109401,0.00022739,2]
[315419190,1709022635057,-500.0,0.00022739,2]
[315419191,1709022635067,-500.0,0.00022739,2]
[315419192,1709022635077,-500.0,0.00022739,2]
[315419193,1709022635087,-500.0,0.00022739,2]
[315419194,1709022635097,-500.0,0.00022739,2]
[315419195,1709022635106,-500.0,0.00022739,2]
[315419196,1709022635117,-500.0,0.00022739,2]
[315419197,1709022635127,-500.0,0.00022739,2]
[315419198,1709022635137,-500.0,0.00022739,2]
[315419199,1709022635146,-500.0,0.00022739,2]
[315419200,1709022635156,-500.0,0.00022739,2]
[315419201,1709022635166,-500.0,0.00022739,2]
[315419202,1709022635176,-3421.55,0.00022739,2]
[315419203,1709022635186,-500.0,0.00022739,2]
[315419204,1709022635196,-595.66,0.00022739,2]
[315419205,1709022635206,-687.22,0.00022739,2]
[315419206,1709022635216,-500.0,0.00022739,2]
[315419207,1709022635226,-500.0,0.00022739,2]
[315419208,1709022635236,-225.6773588,0.00022739,2]
[315419209,1709022635246,-500.0,0.00022739,2]
[315419210,1709022635256,-500.0,0.00022739,2]
[315419211,1709022635265,-500.0,0.00022739,2]
[315419212,1709022635275,-946.22,0.00022739,2]
[315419213,1709022635284,-500.0,0.00022739,2]
[315419214,1709022635294,-500.0,0.00022739,2]
[315419215,1709022635303,-500.0,0.00022739,2]
[315419216,1709022635313,-500.0,0.00022739,2]
[315419217,1709022635323,-808.11,0.00022739,2]
[315419218,1709022635333,-1799.96,0.00022739,2]
[315419219,1709022635343,-500.0,0.00022739,2]
[315419220,1709022635352,-500.0,0.00022739,2]
[315419221,1709022635361,-500.0,0.00022739,2]
[315419222,1709022635370,-500.0,0.00022739,2]
[315419223,1709022635380,-500.0,0.00022739,2]
[315419224,1709022635389,-500.0,0.00022739,2]
[315419225,1709022635399,-500.0,0.00022739,2]
[315419226,1709022635408,-2475.99,0.00022739,2]
[315419227,1709022635418,-500.0,0.00022739,2]
[315419228,1709022635427,-636.53930866,0.00022739,2]
[315419229,1709022635437,-500.0,0.00022739,2]
[315419230,1709022635446,-195.04,0.00022739,2]
[315419231,1709022635456,-500.0,0.00022739,2]
[315419232,1709022635465,-500.0,0.00022739,2]
[315419233,1709022635475,-186.60376639,0.00022739,2]
[315419234,1709022635484,-626.97,0.00022739,2]
[315419235,1709022635494,-600.22,0.00022739,2]
[315419236,1709022635504,-500.0,0.00022739,2]
[315419237,1709022635513,-500.0,0.00022739,2]
[315419238,1709022635522,-500.0,0.00022739,2]
[315419239,1709022635532,-500.0,0.00022739,2]
[315419240,1709022635541,-467.37133488,0.00022739,2]
[315419241,1709022635558,-32.62866512,0.00022739,2]
[315419242,1709022635567,-500.0,0.00022739,2]
[315419243,1709022635577,-500.0,0.00022739,2]
[315419244,1709022635586,-2523.31,0.00022739,2]
[315419245,1709022635595,-500.0,0.00022739,2]
[315419246,1709022635605,-500.0,0.00022739,2]
[315419247,1709022635614,-500.0,0.00022739,2]
[315419248,1709022635624,-159.79,0.0002274,2]
[315419249,1709022635634,-150.4,0.0002274,2]
[315419250,1709022635644,-500.0,0.00022768,2]
[315419251,1709022635653,-500.0,0.00022768,2]
[315419252,1709022635662,-500.0,0.00022768,2]
[315419253,1709022635672,-500.0,0.00022768,2]
[315419254,1709022635681,-500.0,0.00022768,2]
[315419255,1709022635691,-500.0,0.00022768,2]
[315419256,1709022635700,-838.99,0.00022768,2]
[315419257,1709022635710,-500.0,0.00022768,2]
[315419258,1709022635719,-521.03,0.00022768,2]
[315419259,1709022635728,-791.32186454,0.00022768,2]
[315419260,1709022635744,-1068.84813546,0.00022768,2]
[315419261,1709022635753,-500.0,0.00022768,2]
[315419262,1709022635763,-431.15186454,0.00022768,2]
[315419268,1709022638491,-378.645,0.00022739,2]
[315419269,1709022638503,-121.355,0.00022739,2]
[315419270,1709022638512,-563.25,0.00022739,2]
[315419271,1709022638521,-68.84813546,0.00022768,2]
[315419272,1709022638530,-500.0,0.00022768,2]
[315419273,1709022638539,-500.0,0.00022768,2]
[315419274,1709022638548,-500.0,0.00022768,2]
[315419275,1709022638557,-500.0,0.00022768,2]
[315419276,1709022638567,-500.0,0.00022768,2]
[315419277,1709022638575,-500.0,0.00022768,2]
[315419278,1709022638589,-500.0,0.00022768,2]
[315419279,1709022638598,-500.0,0.00022768,2]
[315419280,1709022638607,-151.00496107,0.0002279,2]
[315419281,1709022638616,-152.9,0.00022794,2]
[315419282,1709022638625,-155.08018218,0.00022798,2]
[315419283,1709022638635,-155.0,0.00022798,2]
[315419284,1709022638644,-226.15782634,0.00022798,2]
[315419285,1709022638653,-359.42054037,0.00022798,2]
[315419286,1709022638662,-3005.6661,0.00022798,2]
[315419288,1709022638672,-500.0,0.00022799,2]
[315419290,1709022638680,-500.0,0.00022799,2]
[315419292,1709022638689,-500.0,0.00022799,2]
[315419294,1709022638698,-500.0,0.00022799,2]
[315419296,1709022638707,-500.0,0.00022799,2]
[315419298,1709022638716,-500.0,0.00022799,2]
[315419300,1709022638725,-500.0,0.00022799,2]
[315419302,1709022638734,-500.0,0.00022799,2]
[315419304,1709022638743,-500.0,0.00022799,2]
[315419306,1709022638752,-500.0,0.00022799,2]
[315419308,1709022638761,-500.0,0.00022799,2]
[315419310,1709022638770,-500.0,0.00022799,2]
[315419312,1709022638779,-500.0,0.00022799,2]
[315419314,1709022638790,-150.0,0.00022799,2]
[315419316,1709022638800,-500.0,0.00022799,2]
[315419318,1709022638809,-500.0,0.00022799,2]
[315419320,1709022638818,-500.0,0.00022799,2]
[315419322,1709022638827,-500.0,0.00022799,2]
[315419324,1709022638838,-500.0,0.00022799,2]
[315419325,1709022638846,-500.0,0.00022799,2]
[315419327,1709022638856,-559.71,0.00022799,2]
[315419330,1709022638867,-500.0,0.00022799,2]
[315419332,1709022638877,-500.0,0.00022799,2]
[315419334,1709022638886,-253.04653239,0.00022799,2]
[315419336,1709022638896,-579.75044189,0.00022799,2]
[315419338,1709022638905,-500.0,0.00022799,2]
[315419340,1709022638915,-154.41,0.00022799,2]
[315419341,1709022638924,-500.0,0.00022799,2]
[315419343,1709022638934,-500.0,0.00022799,2]
[315419345,1709022638942,-226.46336751,0.00022799,2]
[315419347,1709022638951,-444.85527,0.00022799,2]
[315419349,1709022638961,-500.0,0.00022799,2]
[315419351,1709022638970,-513.92881042,0.00022799,2]
[315419353,1709022638980,-500.0,0.00022799,2]
[315419355,1709022638989,-240.23360128,0.00022799,2]
[315419357,1709022638999,-301.56567463,0.00022799,2]
[315419359,1709022639008,-506.88869404,0.00022799,2]
[315419361,1709022639017,-500.0,0.00022799,2]
[315419363,1709022639027,-500.0,0.00022799,2]
[315419365,1709022639036,-505.8459402,0.00022799,2]
[315419367,1709022639046,-829.57,0.00022799,2]
[315419369,1709022639055,-611.3182356,0.00022799,2]
[315419371,1709022639064,-500.0,0.00022799,2]
[315419373,1709022639074,-500.0,0.00022799,2]
[315419375,1709022639083,-500.0,0.00022799,2]
[315419377,1709022639092,-1037.32,0.00022799,2]
[315419379,1709022639101,-524.54806156,0.00022799,2]
[315419381,1709022639111,-509.75358201,0.00022799,2]
[315419383,1709022639121,-515.58568728,0.00022799,2]
[315419385,1709022639131,-500.0,0.00022799,2]
[315419387,1709022639140,-500.0,0.00022799,2]
[315419389,1709022639149,-368.29144016,0.00022799,2]
[315419391,1709022639161,-500.0,0.00022799,2]
[315419393,1709022639171,-838.99,0.00022799,2]
[315419395,1709022639180,-500.0,0.00022799,2]
[315419397,1709022639189,-500.0,0.00022799,2]
[315419399,1709022639198,-500.0,0.00022799,2]
[315419401,1709022639207,-500.0,0.00022799,2]
[315419403,1709022639218,-500.0,0.00022799,2]
[315419405,1709022639227,-511.43255115,0.00022799,2]
[315419407,1709022639236,-513.73342453,0.00022799,2]
[315419410,1709022639246,-535.10916861,0.00022799,2]
[315419412,1709022639255,-500.0,0.00022799,2]
[315419414,1709022639264,-521.03,0.00022799,2]
[315419416,1709022639274,-327.32127631,0.00022799,2]
[315419418,1709022639283,-500.0,0.00022799,2]
[315419420,1709022639292,-496.54238961,0.00022799,2]
[315419422,1709022639307,-3.45761039,0.00022799,2]
[315419424,1709022639317,-358.11583934,0.00022799,2]
[315419426,1709022639326,-1860.17,0.00022799,2]
[315419428,1709022639337,-79.93637207,0.00022799,2]
[315419430,1709022639348,-420.06362793,0.00022799,2]
[315419432,1709022639357,-500.0,0.00022799,2]
[315419434,1709022639368,-500.0,0.00022799,2]
[315419437,1709022639378,-500.0,0.00022799,2]
[315419439,1709022639387,-500.0,0.00022799,2]
[315419441,1709022639396,-500.0,0.00022799,2]
[315419443,1709022639405,-510.89,0.00022799,2]
[315419445,1709022639414,-500.0,0.00022799,2]
[315419447,1709022639425,-500.0,0.00022799,2]
[315419449,1709022639434,-93.64731961,0.00022799,2]
[315419455,1709022639482,-406.35268039,0.00022799,2]
[315419457,1709022639491,-500.0,0.00022799,2]
[315419459,1709022639500,-500.0,0.00022799,2]
[315419461,1709022639510,-500.0,0.00022799,2]
[315419463,1709022639519,-500.0,0.00022799,2]
[315419465,1709022639528,-500.0,0.00022799,2]
[315419467,1709022639537,-500.0,0.00022799,2]
[315419469,1709022639546,-500.0,0.00022799,2]
[315419471,1709022639556,-500.0,0.00022799,2]
[315419473,1709022639565,-500.0,0.00022799,2]
[315419474,1709022639574,-513.93548213,0.00022799,2]
[315419475,1709022639583,-205.67183748,0.00022799,2]
[315419476,1709022639624,-500.0,0.00022739,2]
[315419477,1709022639633,-415.05816252,0.00022799,2]
[315419478,1709022639642,-500.0,0.00022799,2]
[315419479,1709022639651,-500.0,0.00022799,2]
[315419480,1709022639660,-500.0,0.00022799,2]
[315419481,1709022639669,-695.34,0.00022799,2]
[315419482,1709022639678,-1818.24,0.00022799,2]
[315419483,1709022639687,-2037.37,0.00022799,2]
[315419485,1709022639696,-500.0,0.00022799,2]
[315419486,1709022639706,-500.0,0.00022799,2]
[315419488,1709022639715,-500.0,0.00022799,2]
[315419490,1709022639724,-500.0,0.00022799,2]
[315419493,1709022639734,-645.98,0.00022799,2]
[315419494,1709022639743,-500.0,0.00022799,2]
[315419496,1709022639752,-500.0,0.00022799,2]
[315419499,1709022639761,-44.52345671,0.00022799,2]
[315419631,1709022640962,-500.0,0.00022739,2]
[315419633,1709022640972,-62.26,0.00022798,2]
[315419636,1709022640984,-437.74,0.00022798,2]
[315419638,1709022640995,-455.47654329,0.00022799,2]
[315419640,1709022641005,-256.45,0.00022799,2]
[315419642,1709022641015,-478.49583299,0.00022799,2]
[315419644,1709022641024,-500.0,0.00022799,2]
[315419646,1709022641034,-129.96306951,0.00022799,2]
[315419648,1709022641045,-370.03693049,0.00022799,2]
[315419650,1709022641054,-272.15180937,0.00022799,2]
[315419653,1709022641066,-505.79819063,0.00022799,2]
[315419655,1709022641076,-339.72680937,0.00022799,2]
[315419657,1709022641093,-160.27319063,0.00022799,2]
[315419660,1709022641103,-500.0,0.00022799,2]
[315419662,1709022641112,-500.0,0.00022799,2]
[315419664,1709022641122,-500.0,0.00022799,2]
[315419666,1709022641132,-350.7376086,0.00022799,2]
[315420006,1709022644929,-155.0,0.00019108,2]
[315420007,1709022644939,-648.0,0.00020641,2]
[315420008,1709022644950,-648.0,0.00021737,2]
[315420009,1709022644960,-466.942,0.00022043,2]
[315420010,1709022644969,-500.0,0.00022739,2]
[315420011,1709022644979,-500.0,0.00022739,2]
[315420012,1709022644988,-710.76061651,0.00022739,2]
[315420013,1709022645001,-49.67938349,0.00022739,2]
[315420014,1709022645011,-382.32061651,0.00022739,2]
[315420015,1709022645046,-117.67938349,0.00022739,2]
[315420016,1709022645056,-149.2623914,0.00022799,2]
[315420017,1709022645065,-278.98,0.00022799,2]
[315420018,1709022645075,-1385.43,0.00022799,2]
[315420019,1709022645084,-500.0,0.00022799,2]
[315420020,1709022645095,-635.48,0.00022799,2]
[315420021,1709022645106,-500.0,0.00022799,2]
[315420022,1709022645116,-500.0,0.00022799,2]
[315420023,1709022645127,-500.0,0.00022799,2]
[315420024,1709022645136,-569.83,0.00022799,2]
[315420025,1709022645146,-500.0,0.00022799,2]
[315420026,1709022645156,-500.0,0.00022799,2]
[315420027,1709022645166,-606.5328577,0.00022799,2]
[315420028,1709022645175,-500.0,0.00022799,2]
[315420029,1709022645184,-500.0,0.00022799,2]
[315420030,1709022645194,-500.0,0.00022799,2]
[315420031,1709022645203,-807.21,0.00022799,2]
[315420032,1709022645212,-500.0,0.00022799,2]
[315420033,1709022645222,-500.0,0.00022799,2]
[315420034,1709022645232,-500.0,0.00022799,2]
[315420035,1709022645241,-628.12251343,0.00022799,2]
[315420036,1709022645251,-500.0,0.00022799,2]
[315420037,1709022645262,-500.0,0.00022799,2]
[315420038,1709022645272,-500.0,0.00022799,2]
[315420039,1709022645282,-500.0,0.00022799,2]
[315420040,1709022645293,-1615.64,0.00022799,2]
[315420041,1709022645304,-184.45440551,0.00022799,2]
[315420042,1709022645313,-500.0,0.00022799,2]
[315420043,1709022645323,-500.0,0.00022799,2]
[315420044,1709022645332,-1516.81,0.00022799,2]
[315420045,1709022645341,-559.57527215,0.00022799,2]
[315420046,1709022645350,-303.37155553,0.00022799,2]
[315420047,1709022645360,-500.0,0.00022799,2]
[315420048,1709022645369,-500.0,0.00022799,2]
[315420049,1709022645380,-584.39,0.00022799,2]
[315420050,1709022645390,-500.0,0.00022799,2]
[315420051,1709022645400,-540.39563332,0.00022799,2]
[315420052,1709022645409,-640.73813836,0.00022799,2]
[315420053,1709022645418,-3827.73,0.00022799,2]
[315420054,1709022645427,-500.0,0.00022799,2]
[315420055,1709022645436,-500.0,0.00022799,2]
[315420056,1709022645446,-500.0,0.00022799,2]
[315420057,1709022645455,-1016.29,0.00022799,2]
[315420058,1709022645465,-500.0,0.00022799,2]
[315420059,1709022645474,-500.0,0.00022799,2]
[315420061,1709022645483,-500.0,0.00022799,2]
[315420063,1709022645493,-500.0,0.00022799,2]
[315420064,1709022645503,-500.0,0.00022799,2]
[315420065,1709022645512,-500.0,0.00022799,2]
[315420066,1709022645521,-500.0,0.00022799,2]
[315420068,1709022645530,-500.0,0.00022799,2]
[315420070,1709022645538,-500.0,0.00022799,2]
[315420072,1709022645547,-500.0,0.00022799,2]
[315420074,1709022645558,-500.0,0.00022799,2]
[315420076,1709022645567,-500.0,0.00022799,2]
[315420078,1709022645577,-3421.55,0.00022799,2]
[315420080,1709022645585,-500.0,0.00022799,2]
[315420082,1709022645594,-595.66,0.00022799,2]
[315420084,1709022645604,-500.0,0.00022799,2]
[315420086,1709022645612,-687.22,0.00022799,2]
[315420088,1709022645622,-500.0,0.00022799,2]
[315420090,1709022645631,-500.0,0.00022799,2]
[315420092,1709022645640,-500.0,0.00022799,2]
[315420093,1709022645649,-500.0,0.00022799,2]
[315420094,1709022645658,-500.0,0.00022799,2]
[315420095,1709022645667,-946.22,0.00022799,2]
[315420096,1709022645676,-500.0,0.00022799,2]